Cogmind - Beta 13 @@@ ROGUE MODE // 2024.02.26 @ 05:16:01 // Winter2019/RPGLIKE Player: H3-RMN Result: Destroyed by Y-45 Defender with Beam Rifle Performance ------------- Evolutions (2) 1000 Regions Visited (3) 600 Robots Destroyed (33) 165 Value Destroyed (946) 946 Prototype IDs (16) 320 Alien Tech Used (0) 0 Bonus (-39) -39 TOTAL SCORE: 2992 Bonus ------- Friendly Fire -39 Cogmind --------- Core Integrity 0/1050 Matter 278/300 Energy 125/125 System Corruption 0% Temperature Warm (119) Movement Rolling (200) Ox8 Location -8/Materials Parts ------- > --- POWER (1) -------- Light Ion Engine > --- PROPULSION (2) --- Wheel Wheel > --- UTILITY (5) ------ Humpback Makeshift Light Armor Plating Makeshift Kinetic Plating System Shield > --- WEAPON (2) ------- Riot Gun Light Assault Rifle > --- INVENTORY (33) --- Disposable Heat Sink Improved Terrain Scanner Hardened Light Armor Plating Makeshift Hacking Suite Makeshift System Shield Trap Extractor (0/4) Rainbow Chip Grenade Launcher Multitool Peak State ------------ > --- POWER ------------ Light Ion Engine > --- PROPULSION ------- Wheel Wheel > --- UTILITY ---------- Humpback Makeshift Light Armor Plating Makeshift Kinetic Plating System Shield > --- WEAPON ----------- Riot Gun Light Assault Rifle > --- INVENTORY -------- Disposable Heat Sink Improved Terrain Scanner Hardened Light Armor Plating Makeshift Hacking Suite Makeshift System Shield Trap Extractor Rainbow Chip Grenade Launcher Multitool [Rating: 23] Favorites ----------- Power Light Ion Engine Engine Light Ion Engine Propulsion Wheel Treads Light Treads Wheel Wheel Hover Unit Hover Unit Utility Improved Terrain Scanner Device Improved Terrain Scanner Storage Humpback Processor Signal Interpreter Hackware Hacking Suite Protection Scrap Shield Weapon Light Assault Rifle Energy Gun Riot Gun Ballistic Gun Light Assault Rifle Launcher Grenade Launcher Special Melee Weapon Datajack Build | -11 -10 -10 -8 ------- Run | Yrd Mat Sub Mat Slots Evolved 6 | 4 . 1 1 Power . | . . . . Propulsion 1 | 1 . . . Utility 4 | 2 . 1 1 Weapon 1 | 1 . . . Parts Attached 35 | 7 10 14 4 Power 1 | 1 . . . Engine 1 | 1 . . . Core . | . . . . Reactor . | . . . . Propulsion 7 | 2 2 3 . Treads 1 | 1 . . . Leg . | . . . . Wheel 4 | 1 . 3 . Hover 2 | . 2 . . Flight . | . . . . Utility 13 | 2 4 4 3 Device 3 | 2 . 1 . Storage 1 | . . 1 . Processor 1 | . 1 . . Hackware 3 | . 2 . 1 Protection 5 | . 1 2 2 Artifact . | . . . . Weapon 14 | 2 4 7 1 Energy Gun 3 | 1 . 2 . Energy Cannon . | . . . . Ballistic Gun 7 | 1 3 2 1 Ballistic Cannon . | . . . . Launcher 3 | . 1 2 . Special Weapon . | . . . . Impact Weapon . | . . . . Slashing Weapon . | . . . . Piercing Weapon . | . . . . Special Melee Weapon 1 | . . 1 . Unidentified Prototypes . | . . . . Parts Lost 1 | . . . 1 Power . | . . . . Propulsion . | . . . . Utility 1 | . . . 1 Weapon . | . . . . Highest Loss Streak 1 | . . . 1 To Critical Strikes . | . . . . Average Slot Usage (%) 87 | . 97 78 79 Engine 11 | . 12 11 10 Treads 2 | . 5 . . Wheel 9 | . 3 12 20 Hover 8 | . 16 2 . Device 10 | . 15 7 . Storage 2 | . . 4 10 Processor 3 | . 7 . . Hackware 6 | . 10 2 8 Protection 8 | . . 15 10 Energy Gun 4 | . . 7 10 Ballistic Gun 13 | . 20 7 8 Launcher 4 | . 3 6 1 Naked Turns . | . . . . Heaviest Build 227 | 8 11 227 227 Greatest Support 25 | 20 12 25 25 Greatest Overweight (x) 9 | . . 9 9 Average Overweight (x) 1 | . . 3 8 Largest Inventory Capacity 33 | . 3 33 33 Average Capacity 10 | . 1 14 33 Most Carried 12 | . 3 11 12 Average Carried 3 | . 1 4 10 Final Capacity 33 | . 3 33 33 Final Carried 11 | . 3 11 9 Class Distribution -------------------- 35% | Mutant 34% | Hacker-Mutant 26% | Hauler-Mutant 3% | Scavenger-Mutant Dominant Class ---------------- Hacker-Mutant | -10/Materials Hauler-Mutant | -10/Subcaves Hauler-Mutant | -8/Materials Resources | -11 -10 -10 -8 ----------- Run | Yrd Mat Sub Mat Matter Collected 1029 | 288 402 308 31 Remotely . | . . . . Salvage Created 1075 | 154 374 223 324 Parts 74 | 10 31 9 24 Haulers Intercepted 1 | . 1 . . Recyclers Shooed 2 | 1 1 . . Parts Field Recycled . | . . . . Retrieved Matter . | . . . . Parts Self-Destructed 6 | . . 6 . Prevented . | . . . . Kills | -11 -10 -10 -8 ------- Run | Yrd Mat Sub Mat Combat Hostiles Destroyed 23 | . 11 6 6 Guns 19 | . 11 2 6 AOE 4 | . . 4 . Classes Destroyed 10 | 2 5 2 1 Tunneler 3 | 3 . . . Hauler 1 | . 1 . . Recycler 2 | 1 1 . . Operator 3 | . 3 . . Watcher 1 | . 1 . . Swarmer 5 | . 5 . . Grunt 6 | . 6 . . Sentry 6 | . . . 6 Artisan 1 | . . 1 . Subdweller 6 | . . 6 . Best Kill Streak 4 | 4 4 3 2 Combat Bots Only 4 | . 4 3 2 Max Kills in Single Turn 2 | 1 1 2 2 Gunslinging 1 | . . . 1 Exploded 2 | . . 2 . Melee . | . . . . Uniques/NPCs Destroyed . | . . . . Combat | -11 -10 -10 -8 -------- Run | Yrd Mat Sub Mat Hostile Shots Fired 174 | . 43 62 69 Missed 47 | . 14 15 18 Damage Taken 2031 | . 333 1119 579 Core 1420 | . 272 812 336 Absorbed by Shields . | . . . . Redirected to Core 996 | . 194 522 280 Ignored by Resistances 14 | . . . 14 Core Remaining (%) 53 | 100 . 7 . Volleys Fired 148 | 6 85 39 18 Largest 2 | 2 2 2 2 Hottest 80 | 60 40 80 70 Shots Fired 257 | 12 140 69 36 Gun 243 | 12 136 59 36 Cannon . | . . . . Launcher 14 | . 4 10 . Special . | . . . . Kinetic 218 | 6 136 58 18 Thermal 6 | 6 . . . Explosive 14 | . 4 10 . Electromagnetic 19 | . . 1 18 Robot Hit Streak 24 | 9 13 13 24 Robot Miss Streak 5 | 1 5 1 1 Penetration Max . | . . . . Secondary Targets 2 | . . 1 1 Max Gunslinging Chain 1 | . . 1 1 Shots Hit Robots 190 | 9 87 61 33 Core Hits 75 | 5 35 19 16 Critical Kills . | . . . . Critical Parts Destroyed 1 | . 1 . . Critical Strikes 1 | . 1 . . Destroy 1 | . 1 . . Melee Attacks 5 | . . 5 . Impact . | . . . . Slashing . | . . . . Piercing . | . . . . Sneak Attacks 5 | . . 5 . Combat Hostiles . | . . . . Follow-up Attacks . | . . . . Damage Inflicted 2314 | 101 866 951 396 Guns 1499 | 101 724 278 396 Cannons . | . . . . Explosions 815 | . 142 673 . Melee . | . . . . Ramming . | . . . . Kinetic 1159 | 47 724 268 120 Thermal 154 | 54 100 . . Explosive 715 | . 42 673 . Electromagnetic 286 | . . 10 276 Impact . | . . . . Slashing . | . . . . Piercing . | . . . . Highest Corruption . | . . . . Average Corruption . | . . . . Corruption Purged . | . . . . Corruption Blocked . | . . . . Overload Shots . | . . . . Overflow Damage 70 | . 70 . . Projectiles . | . . . . Explosions 70 | . 70 . . Melee . | . . . . Knockbacks . | . . . . Impact . | . . . . Kinetic . | . . . . Secondary . | . . . . Self-Inflicted Damage 154 | . 40 114 . Shots 5 | . 1 4 . Rammed . | . . . . Targets Rammed . | . . . . Kicked . | . . . . Crushed . | . . . . Highest Temperature 134 | . 17 . 134 Average Temperature 31 | . 5 . 58 Received Heat Transfer 450 | . 111 96 243 Siege Activations . | . . . . Robots Corrupted . | . . . . Combat Hostiles . | . . . . Parts Fried 1 | . . . 1 Impact Corruptions . | . . . . Robots Melted . | . . . . Combat Hostiles . | . . . . Parts Melted . | . . . . Heat Transferred 175 | 125 50 . . Parts Sabotaged . | . . . . Parts Stolen . | . . . . Parts Stripped . | . . . . Power Chain Reactions . | . . . . Alert | -11 -10 -10 -8 ------- Run | Yrd Mat Sub Mat Peak Influence 317 | 20 317 . 195 Initial 13 | . 13 . . Average 138 | 5 165 . 67 Maximum Alert Level 1 | . 1 . . Low Security (%) 69 | 100 60 . 100 Level 1 30 | . 39 . . Level 2 . | . . . . Level 3 . | . . . . Level 4 . | . . . . Level 5 . | . . . . High Security . | . . . . Max Security . | . . . . Squads Dispatched 6 | . 4 . 2 Investigation 2 | . 2 . . Extermination . | . . . . Reinforcement 2 | . 2 . . Assault . | . . . . Garrison 2 | . . . 2 Intercept . | . . . . Searches Triggered . | . . . . Construction Impeded . | . . . . Haulers Reinforced . | . . . . Active Scanning Responses . | . . . . Cargo Convoy Interrupts . | . . . . Stealth | -11 -10 -10 -8 --------- Run | Yrd Mat Sub Mat Distress Signals 2 | . 2 . . Communications Jammed . | . . . . Distress Signals . | . . . . Times Spotted 43 | . 28 6 9 Peak Tracking Total 6 | . 5 4 6 Tactical Retreats 5 | . 5 . . Traps | -11 -10 -10 -8 ------- Run | Yrd Mat Sub Mat Traps Triggered 2 | . 1 1 . Indirectly . | . . . . Trap Hack Attempts . | . . . . Triggered . | . . . . Disarmed 4 | . 4 . . Reprogrammed . | . . . . Reused . | . . . . Traps Extracted . | . . . . Installed . | . . . . Triggered . | . . . . Machines | -11 -10 -10 -8 ---------- Run | Yrd Mat Sub Mat Machines Disabled 11 | . 7 4 . Max in Single Turn 2 | . 2 2 . Machines Repaired . | . . . . Machines Dismantled . | . . . . Machines Sabotaged . | . . . . Overloaded Fab Kills . | . . . . Hacking | -11 -10 -10 -8 --------- Run | Yrd Mat Sub Mat Machines Accessed 9 | . 7 1 1 Terminals 6 | . 6 . . Fabricators . | . . . . Repair Stations . | . . . . Recycling Units 1 | . 1 . . Scanalyzers 1 | . . . 1 Garrison Access . | . . . . Total Hacks 35 | . 28 1 6 Successful 19 | . 13 1 5 Failed 16 | . 15 . 1 Catastrophic 1 | . 1 . . Database Lockouts . | . . . . Manual 15 | . 15 . . Terminals 25 | . 25 . . Fabricators . | . . . . Repair Stations . | . . . . Recycling Units 3 | . 3 . . Scanalyzers 6 | . . . 6 Garrison Access . | . . . . Terminal Hacks 14 | . 13 1 . Robot Schematic 1 | . 1 . . Robot Analysis 2 | . 2 . . Prototype ID Bank 4 | . 4 . . Unreport Threat 3 | . 3 . . Locate Traps 1 | . 1 . . Disarm Traps 1 | . 1 . . Hauler Manifests 1 | . 1 . . Derelict Proto ID Bank 1 | . . 1 . Fabricator Hacks . | . . . . Repair Station Hacks . | . . . . Recycling Unit Hacks . | . . . . Scanalyzer 5 | . . . 5 Insert Component 2 | . . . 2 Analyze 3 | . . . 3 Garrison Access Hacks . | . . . . Unauthorized Hacks . | . . . . Terminals . | . . . . Fabricators . | . . . . Repair Stations . | . . . . Recycling Units . | . . . . Scanalyzers . | . . . . Garrison Access . | . . . . Data Cores Recovered 1 | . 1 . . Used . | . . . . Hacking Detections 7 | . 6 . 1 Full Trace Events 3 | . 3 . . Feedback Events . | . . . . Feedback Blocked . | . . . . Robot Schematics Acquired 1 | . 1 . . Robots Built . | . . . . Authchips . | . . . . Time . | . . . . Total Robot Build Rating . | . . . . Part Schematics Acquired 2 | . . . 2 Parts Built . | . . . . Authchips . | . . . . Time . | . . . . Total Part Build Rating . | . . . . Parts Repaired . | . . . . Time . | . . . . Parts Recycled . | . . . . Recycled Matter . | . . . . Retrieved Matter . | . . . . Retrieved Components . | . . . . Parts Scanalyzed 2 | . . . 2 Part Schematics Acquired 2 | . . . 2 Parts Damaged . | . . . . Bothacking | -11 -10 -10 -8 ------------ Run | Yrd Mat Sub Mat Used RIF Installer . | . . . . Robots Hacked 1 | . . 1 . Non-combat 1 | . . 1 . Combat . | . . . . Robot Hacks Applied 5 | . . 5 . parse_system 5 | . . 5 . Relay Couplers Released . | . . . . Fabnet Peak Effective % . | . . . . Robots Rewired . | . . . . Allies Hacked . | . . . . Hacks Repelled . | . . . . Allies | -11 -10 -10 -8 -------- Run | Yrd Mat Sub Mat Total Allies . | . . . . Largest Group . | . . . . Highest-Rated Group . | . . . . Highest-Rated Ally . | . . . . Total Orders . | . . . . Ally Attacks . | . . . . Total Damage . | . . . . Kills . | . . . . Allies Corrupted . | . . . . Allies Melted . | . . . . Intel | -11 -10 -10 -8 ------- Run | Yrd Mat Sub Mat Robot Analysis Total 2 | . 2 . . Derelict Logs Recovered . | . . . . Drone Launches . | . . . . Drone Recoveries . | . . . . Exploration | -11 -10 -10 -8 ------------- Run | Yrd Mat Sub Mat Turns Passed 2016 | 71 892 842 211 Spaces Moved 1434 | 49 867 453 65 Core 66 | 7 . 59 . Treads 1 | 1 . . . Legs . | . . . . Wheels 616 | 41 201 309 65 Hover 751 | . 666 85 . Flight . | . . . . Fastest Speed 50 | 50 56 56 200 Average Speed 99 | 77 65 153 202 Slowest Speed 250 | 160 80 250 215 Overloaded Moves . | . . . . Propulsion Burnouts . | . . . . Robots Hopped . | . . . . Cave-ins Triggered . | . . . . Exploration Rate (%) 32 | 3 98 19 10 Regions Visited 3 Branch Regions 1 Pre-discovered Areas . | . . . . Known Exits Taken . | . . . . Unknown Exits Taken 3 | 1 1 1 . Scrap Searched 3 | . . 3 . Spaces Dug . | . . . . Terrain Destroyed 92 | . 61 31 . Melee . | . . . . Projectile . | . . . . AOE 92 | . 61 31 . Terrain Rammed . | . . . . Walls Destroyed . | . . . . Machines Disabled . | . . . . Actions | -11 -10 -10 -8 --------- Run | Yrd Mat Sub Mat Total 1797 | 66 1081 538 112 Wait 113 | 5 84 5 19 Move 1431 | 48 866 452 65 Hop . | . . . . Pick Up 16 | . 5 10 1 Fast Attach 24 | 7 9 8 . Attach 4 | . . 1 3 Detach . | . . . . Swap 7 | . 1 5 1 Drop 21 | . 10 11 . Fire 148 | 6 85 39 18 Melee 5 | . . 5 . Ram . | . . . . Kick . | . . . . Crush . | . . . . Escape Stasis . | . . . . Rewire . | . . . . Trap . | . . . . Miscellaneous 28 | . 21 2 5 Route ------- -11/Scrapyard -10/Materials (discovered 6 exits: *Mat x3 / [*Min x2] / *Sub) -10/Subcaves -8/Materials History --------- Turn | Location | Event 14 | -11/Scrapyard | Upgraded with Propulsion slot (x1) 14 | -11/Scrapyard | Upgraded with Utility slot (x1) 14 | -11/Scrapyard | Upgraded with Weapon slot (x1) 14 | -11/Scrapyard | Discovered new exit (range 16) 70 | -11/Scrapyard | Upgraded with Utility slot (x1) 72 | -11/Scrapyard | Entered Materials 194 | -10/Materials | Discovered new exit (range 7) 253 | -10/Materials | Identified exit to Materials 301 | -10/Materials | Build established: Mutant 317 | -10/Materials | Discovered new exit (range 14) 381 | -10/Materials | Discovered exit to Materials (range 8) 410 | -10/Materials | Discovered new exit (range 7) 692 | -10/Materials | Reached level 2 772 | -10/Materials | Build established: Hacker-Mutant 830 | -10/Materials | Discovered exit to Materials (range 12) 905 | -10/Materials | Discovered new exit (range 10) 964 | -10/Materials | Entered Subcaves 964 | -10/Subcaves | Discovered new exit (range 12) 966 | -10/Subcaves | Reached level 3 972 | -10/Subcaves | Ambushed by Subdwellers from Twisted Machinery 983 | -10/Subcaves | A swath of the cavern ceiling suddenly collapsed 1035 | -10/Subcaves | Core integrity fell below 50% 1048 | -10/Subcaves | Core integrity fell below 20% 1069 | -10/Subcaves | Upgraded with Utility slot (x1) 1081 | -10/Subcaves | Disturbed a concealed Subdweller 1368 | -10/Subcaves | Visited 4L-MR0's lab 1439 | -10/Subcaves | Found Rainbow Chip 1472 | -10/Subcaves | Shifting Twisted Machinery released Humpback 1768 | -10/Subcaves | Build established: Hauler-Mutant 1806 | -10/Subcaves | Entered Materials 1807 | -8/Materials | Core integrity fell below 50% 1807 | -8/Materials | Core integrity fell below 20% 1808 | -8/Materials | Reached level 4 1830 | -8/Materials | Upgraded with Utility slot (x1) 1875 | -8/Materials | Garrison activated, responded to threat 2017 | -8/Materials | Destroyed by Y-45 Defender with Beam Rifle Last Messages --------------- 01937_ Y-45 Defender destroyed. 01937_ Door malfunctions. 01942_ Acquired 5 matter. 01982_ Slug penetrates Y-45 Defender. 01982_ Y-45 Defender suffers critical hit (Destroy). 01982_ Critical hit (Burn: +37). 01986_ Upgraded: Core Integrity (+50) 01990_ Y-45 Defender destroyed. 01992_ Critical hit (Burn: +37). 01997_ Slug penetrates Wall. 02004_ Scrap Shield destroyed. 02009_ Slug penetrates Wall. 02010_ Y-45 Defender misfires. 02012_ Slug penetrates Wall. 02013_ Y-45 Defender destroyed. 02013_ Door malfunctions. 02013_ Switching to secondary target: Y-45 Defender. 02013_ Y-45 Defender destroyed. Map ----- +----------------------------------------------------+ | ????????????????????????????????????? | | ????????????????????????????????????? | | ????????????????????????????????????? | | ????????????????????????????????????? | | ????????????????????????????????????? | | ????????????????????????????????????? | | ????????????????????????????????????? | | ????????????????????????????????????? | | ????????????????????????????????????? | | ????????????????????????????????????? | | ???????????????????????#????????????? | | ???????????????????????#+???????????? | | ???????????????????????# ???????????? | | ???????????????????????# ???????????? | | ?????????????????#####?# ##?????????? | | ????????????????? ^ ?????????? | | ????????????????? +????????? | | ?????????????????""" " #????????? | | ??????????????? ?""" "G" #????????? | | ???????????????? """ " " #????????? | | ?????????????????? #????????? | | ???????????????????? ! #????????? | | ?????????????????????? %#????????? | | ???????????????????????? [=#????????? | | ???????????????????????###+#######??? | | ???????????????????????# @%! !#??? | | ???????????????????# Y/% =% #??? | | ???????????????????#a !#! #??? | | ???????????????????# ?#u #??? | | ???????????????????# ?# """ """ #??? | | ???????????????????# ?# """ """ #??? | | ???????????????????# # """ """ #??? | | ???????????????????# # #?## | | ???????????????????# ##+######### # | | ???????????????????# #?# # | | ???????????????????# #?# ! /# | | ???????????????????# #?# # | | ???????????????????# #?# # | | ???????????????????# ###= # | | ???????????????????# [%#[* # | | ???????????????????# %%/%! # | | ?????????????????? + !=#![ =[[ # | | ?????????????????] # ###[##= =[[ # | | ????????????????#### #?# ## =[[ # | | ???????????????????# #?# ## # | | ???????????????????# ###+########## | | ???????????????????+ + #?????? | | ???????????????????# # #?????? | | ???????????????????# #"S #?????? | | ???????????????????# #""" #?????? | +----------------------------------------------------+ Best States ------------- Heat Dissipation 25 Energy Generation 10 Energy Capacity 125 Matter Stores 300 Matter Capacity 300 Sight Range 21 Terrain Scan Range 16 Terrain Scan Density 110 Armor Coverage 900 Resistance: KI 10 Evasion (%) 53 Recoil Reduction 1 Offensive Hacking 25 Defensive Hacking 15 Item Schematics ----------------- Mak. Hacking Suite | -8/Materials | Scanalyzed Multitool | -8/Materials | Scanalyzed Robot Schematics ------------------ M-13 Machinist | -10/Materials | Hacked Fabricated ------------ Nothing Alien Tech Used ----------------- None Achievements -------------- None Challenges ------------ None RPGLIKE | -11 -10 -10 -8 --------- Run | Yrd Mat Sub Mat Levels Raised 3 | . 1 1 1 XP Earned 8405 | 3000 2105 1000 2300 XP Spent 7435 | 2750 1500 1500 1685 Upgrades 22 | 7 3 8 4 Propulsion Slot 1 | 1 . . . Utility Slot 4 | 2 . 1 1 Weapon Slot 1 | 1 . . . Core Integrity 9 | . . 6 3 Mass Support 1 | . . 1 . Inventory Capacity 3 | . 3 . . Terrain Scan Density 1 | 1 . . . Hack Attack % 1 | 1 . . . Hack Defense % 1 | 1 . . . Protomatter Created 238 | . 149 . 89 Integrity Restored 462 | . 342 . 120 Core 368 | . 248 . 120 Parts 94 | . 94 . . Protomatter Decayed 71 | . 17 54 . Game ------ Seed ConstructRefinerySteel Manual? 0 Play Time 00:26:49 Cumulative 559.3 hours Start 2024.02.26 @ 04:51:30 End 2024.02.26 @ 05:16:01 Sessions 1 Manual Loads 0 Difficulty Rogue Special Mode Winter2019/RPGLIKE Game No. 216 Rogue 195 Adventurer 3 Explorer 18 Win Type - Total 13 Types 8/2/1/1/0/1/0/0/0 Lore% 85 Gallery% 94 Achievement% 82 Wizard Run 0 Options --------- Layout 2 ASCII 0 Keyboard 0 Movement Numpad Keybinds 0 Fullscreen 2 Font 24/Smallcaps Map View 50x44 Zoom Use 0% Tactical HUD 1 Map Filters NONE Filters NONE Steam X RUN: 4e2bc532-3ff9-4dfa-a73a-c07d1a2a06cf